[Event "*** Titled Tuesday Blitz"]
[Site "Chess.com"]
[Date "2020.11.03"]
[Round "4"]
[White "serhanberat_ozdemir"]
[Black "HouseOfDurin"]
[Result "1/2-1/2"]
[WhiteElo "2392"]
[BlackElo "2197"]
[TimeControl "180+1"]
[EndTime "10:43:03 PST"]
[Termination "Game drawn by repetition"]

1. Nf3 {[%clk 0:03:00.9]} 1... c5 {[%clk 0:03:00]} 2. g3 {[%clk 0:03:01.3]} 2...
Nc6 {[%clk 0:03:00.5]} 3. Bg2 {[%clk 0:03:01.9]} 3... g6 {[%clk 0:03:00.9]} 4.
O-O {[%clk 0:03:02.5]} 4... Bg7 {[%clk 0:03:01.4]} 5. c3 {[%clk 0:03:02.8]} 5...
e5 {[%clk 0:03:01.9]} 6. d4 {[%clk 0:03:03.7]} 6... cxd4 {[%clk 0:03:01.1]} 7.
cxd4 {[%clk 0:03:04]} 7... Nxd4 {[%clk 0:03:00.5]} 8. Nxd4 {[%clk 0:03:03.1]}
8... exd4 {[%clk 0:03:01.2]} 9. Na3 {[%clk 0:02:58.9]} 9... a6 {[%clk
0:02:56.8]} 10. Nc2 {[%clk 0:02:58.9]} 10... Qf6 {[%clk 0:02:46.9]} 11. h4
{[%clk 0:02:49.3]} 11... h6 {[%clk 0:02:46.1]} 12. Nb4 {[%clk 0:02:22.7]} 12...
Ne7 {[%clk 0:02:40.9]} 13. Nd3 {[%clk 0:02:21.1]} 13... O-O {[%clk 0:02:29.6]}
14. Bf4 {[%clk 0:02:20.1]} 14... Nc6 {[%clk 0:02:22.5]} 15. Qd2 {[%clk
0:02:15.6]} 15... Kh7 {[%clk 0:02:17.7]} 16. Rac1 {[%clk 0:02:11.1]} 16... Re8
{[%clk 0:01:52.5]} 17. Rfd1 {[%clk 0:01:51.6]} 17... Qe6 {[%clk 0:01:48.7]} 18.
Bf3 {[%clk 0:01:42.2]} 18... d6 {[%clk 0:01:33.6]} 19. Bxc6 {[%clk 0:01:37]}
19... bxc6 {[%clk 0:01:34.5]} 20. Rxc6 {[%clk 0:01:16.3]} 20... Bb7 {[%clk
0:01:34.3]} 21. Nc5 {[%clk 0:01:03.7]} 21... Qd5 {[%clk 0:01:11.9]} 22. Nxb7
{[%clk 0:01:03.1]} 22... Qxc6 {[%clk 0:01:10.8]} 23. Nxd6 {[%clk 0:01:03.7]}
23... Re7 {[%clk 0:01:02.7]} 24. Rc1 {[%clk 0:00:59.2]} 24... Qd5 {[%clk
0:00:57.6]} 25. b3 {[%clk 0:00:55.2]} 25... Qe6 {[%clk 0:00:44.6]} 26. Kf1
{[%clk 0:00:19.2]} 26... g5 {[%clk 0:00:38.3]} 27. hxg5 {[%clk 0:00:16.7]} 27...
hxg5 {[%clk 0:00:38.5]} 28. Qd3+ {[%clk 0:00:17.2]} 28... Kg8 {[%clk 0:00:27.3]}
29. Qf3 {[%clk 0:00:17.1]} 29... Rd8 {[%clk 0:00:18]} 30. Nb7 {[%clk 0:00:12.9]}
30... Rxb7 {[%clk 0:00:13.4]} 31. Qxb7 {[%clk 0:00:11.8]} 31... gxf4 {[%clk
0:00:13.5]} 32. gxf4 {[%clk 0:00:07.4]} 32... Qh3+ {[%clk 0:00:12.7]} 33. Qg2
{[%clk 0:00:08.1]} 33... Qxg2+ {[%clk 0:00:12.1]} 34. Kxg2 {[%clk 0:00:09]}
34... Rd6 {[%clk 0:00:11.3]} 35. Rc8+ {[%clk 0:00:07.9]} 35... Kh7 {[%clk
0:00:11.3]} 36. Kf3 {[%clk 0:00:08.7]} 36... Kg6 {[%clk 0:00:11.3]} 37. Ke4
{[%clk 0:00:08.6]} 37... f5+ {[%clk 0:00:10.5]} 38. Kd3 {[%clk 0:00:08.1]} 38...
Bh6 {[%clk 0:00:09.2]} 39. Rg8+ {[%clk 0:00:05.4]} 39... Kf7 {[%clk 0:00:08.5]}
40. Rg3 {[%clk 0:00:01.4]} 40... Bxf4 {[%clk 0:00:07.5]} 41. Rf3 {[%clk
0:00:02.1]} 41... Be5 {[%clk 0:00:06.1]} 42. Rxf5+ {[%clk 0:00:02.7]} 42... Ke6
{[%clk 0:00:06.8]} 43. Rh5 {[%clk 0:00:02.8]} 43... Kd5 {[%clk 0:00:05.5]} 44.
f4 {[%clk 0:00:02.7]} 44... Re6 {[%clk 0:00:03]} 45. fxe5 {[%clk 0:00:02.5]}
45... Rxe5 {[%clk 0:00:03.9]} 46. Rxe5+ {[%clk 0:00:02.7]} 46... Kxe5 {[%clk
0:00:04.8]} 47. a4 {[%clk 0:00:02.9]} 47... Kd5 {[%clk 0:00:05]} 48. b4 {[%clk
0:00:03.8]} 48... Ke5 {[%clk 0:00:03.3]} 49. b5 {[%clk 0:00:04.3]} 49... axb5
{[%clk 0:00:03]} 50. axb5 {[%clk 0:00:05.2]} 50... Kd5 {[%clk 0:00:03]} 51. b6
{[%clk 0:00:05.9]} 51... Kc6 {[%clk 0:00:03.5]} 52. Kxd4 {[%clk 0:00:06.7]}
52... Kxb6 {[%clk 0:00:04.1]} 53. Kd5 {[%clk 0:00:07.1]} 53... Kc7 {[%clk
0:00:04.5]} 54. e4 {[%clk 0:00:06.5]} 54... Kd7 {[%clk 0:00:04.4]} 55. Ke5
{[%clk 0:00:05.1]} 55... Ke7 {[%clk 0:00:04.7]} 56. Kf5 {[%clk 0:00:04.8]} 56...
Kf7 {[%clk 0:00:05]} 57. e5 {[%clk 0:00:05.7]} 57... Ke7 {[%clk 0:00:05.1]} 58.
e6 {[%clk 0:00:06.6]} 58... Ke8 {[%clk 0:00:05.4]} 59. Kf6 {[%clk 0:00:07.5]}
59... Kf8 {[%clk 0:00:05.6]} 60. Ke5 {[%clk 0:00:08.4]} 60... Ke7 {[%clk
0:00:05.8]} 61. Kd5 {[%clk 0:00:08.8]} 61... Ke8 {[%clk 0:00:05.8]} 62. Kd6
{[%clk 0:00:09.7]} 62... Kd8 {[%clk 0:00:06]} 63. Ke5 {[%clk 0:00:10.6]} 63...
Ke7 {[%clk 0:00:06.1]} 64. Kf5 {[%clk 0:00:11.1]} 64... Ke8 {[%clk 0:00:06]} 65.
Kf6 {[%clk 0:00:12]} 65... Kf8 {[%clk 0:00:06.3]} 66. Ke5 {[%clk 0:00:12.9]}
66... Ke7 {[%clk 0:00:06.2]} 1/2-1/2

[Event "*** Titled Tuesday Blitz"]
[Site "Chess.com"]
[Date "2020.11.03"]
[Round "4"]
[White "MattyDPerrine"]
[Black "WiktoriaPOL"]
[Result "1-0"]
[WhiteElo "2384"]
[BlackElo "2089"]
[TimeControl "180+1"]
[EndTime "10:43:04 PST"]
[Termination "MattyDPerrine won by resignation"]

1. e4 {[%clk 0:03:00.9]} 1... c5 {[%clk 0:02:58.9]} 2. Nf3 {[%clk 0:03:00.2]}
2... g6 {[%clk 0:02:58.3]} 3. d4 {[%clk 0:03:00]} 3... cxd4 {[%clk 0:02:59.2]}
4. Qxd4 {[%clk 0:03:00.5]} 4... Nf6 {[%clk 0:02:58.5]} 5. Nc3 {[%clk 0:03:00.8]}
5... Nc6 {[%clk 0:02:57.7]} 6. Qa4 {[%clk 0:03:01.3]} 6... d6 {[%clk 0:02:55.3]}
7. e5 {[%clk 0:03:01.7]} 7... dxe5 {[%clk 0:02:54.9]} 8. Nxe5 {[%clk 0:03:02.6]}
8... Bg7 {[%clk 0:02:54.9]} 9. Bb5 {[%clk 0:03:02.7]} 9... O-O {[%clk
0:02:47.9]} 10. Nxc6 {[%clk 0:03:02.6]} 10... bxc6 {[%clk 0:02:47.4]} 11. Bxc6
{[%clk 0:03:03.5]} 11... Rb8 {[%clk 0:02:45.1]} 12. O-O {[%clk 0:03:00.7]} 12...
Qb6 {[%clk 0:02:42.3]} 13. Bf4 {[%clk 0:02:50.9]} 13... Ba6 {[%clk 0:02:34.6]}
14. Bxb8 {[%clk 0:02:47]} 14... Bxf1 {[%clk 0:02:33.8]} 15. Bxa7 {[%clk
0:02:21.6]} 15... Qxb2 {[%clk 0:02:30.8]} 16. Rxf1 {[%clk 0:02:21.5]} 16... Qxc3
{[%clk 0:02:29.8]} 17. Bd4 {[%clk 0:01:59.8]} 17... Qd2 {[%clk 0:02:22.8]} 18.
Bf3 {[%clk 0:01:54.6]} 18... Rc8 {[%clk 0:02:17.6]} 19. c3 {[%clk 0:01:43.1]}
19... Ne8 {[%clk 0:01:57.3]} 20. Qd7 {[%clk 0:01:13.5]} 20... Rb8 {[%clk
0:01:51.7]} 21. Rd1 {[%clk 0:01:09]} 21... Qxa2 {[%clk 0:01:49.7]} 22. Qxe7
{[%clk 0:00:29.2]} 22... Bf8 {[%clk 0:01:18.8]} 23. Qa7 {[%clk 0:00:18.8]} 23...
Qxa7 {[%clk 0:01:17.2]} 24. Bxa7 {[%clk 0:00:19.7]} 24... Rc8 {[%clk 0:01:17.8]}
25. Bd4 {[%clk 0:00:17.7]} 25... Bg7 {[%clk 0:01:17.3]} 26. Kf1 {[%clk
0:00:15.9]} 26... Nc7 {[%clk 0:01:11.8]} 27. Bxg7 {[%clk 0:00:10.8]} 27... Kxg7
{[%clk 0:01:11.4]} 28. c4 {[%clk 0:00:10.5]} 28... Ne8 {[%clk 0:01:07.6]} 29.
Bd5 {[%clk 0:00:09.2]} 29... Nf6 {[%clk 0:01:02.2]} 30. Ke2 {[%clk 0:00:07.2]}
30... Nxd5 {[%clk 0:01:01.4]} 31. cxd5 {[%clk 0:00:08.1]} 31... Kf6 {[%clk
0:01:01]} 32. f4 {[%clk 0:00:06.4]} 32... Kf5 {[%clk 0:00:57]} 33. g3 {[%clk
0:00:04.3]} 33... Ke4 {[%clk 0:00:57.1]} 34. d6 {[%clk 0:00:03.8]} 34... Rd8
{[%clk 0:00:54.1]} 35. Rd2 {[%clk 0:00:02.4]} 35... Kf5 {[%clk 0:00:53.2]} 36.
Kf3 {[%clk 0:00:03.3]} 36... Ke6 {[%clk 0:00:52.4]} 37. Ke4 {[%clk 0:00:04.2]}
37... f5+ {[%clk 0:00:48.6]} 38. Ke3 {[%clk 0:00:03.5]} 38... Rd7 {[%clk
0:00:40.4]} 39. Rd4 {[%clk 0:00:03.2]} 39... Rd8 {[%clk 0:00:39]} 40. Kd3 {[%clk
0:00:03.3]} 40... Rxd6 {[%clk 0:00:30.7]} 41. Rxd6+ {[%clk 0:00:04.2]} 41...
Kxd6 {[%clk 0:00:31.3]} 42. Kd4 {[%clk 0:00:05.1]} 42... Ke6 {[%clk 0:00:29.5]}
43. Kc5 {[%clk 0:00:05.1]} 43... Ke7 {[%clk 0:00:27.9]} 44. Kd5 {[%clk
0:00:03.5]} 44... Kf6 {[%clk 0:00:27.4]} 45. Kd6 {[%clk 0:00:03.8]} 45... h6
{[%clk 0:00:27.3]} 46. h4 {[%clk 0:00:02.7]} 46... g5 {[%clk 0:00:23.9]} 47. h5
{[%clk 0:00:02.7]} 47... gxf4 {[%clk 0:00:08.3]} 48. gxf4 {[%clk 0:00:03.6]}
48... Kf7 {[%clk 0:00:05.9]} 49. Ke5 {[%clk 0:00:04.5]} 49... Ke7 {[%clk
0:00:06.3]} 50. Kxf5 {[%clk 0:00:05.4]} 50... Kf7 {[%clk 0:00:06.9]} 51. Ke5
{[%clk 0:00:06.3]} 51... Ke7 {[%clk 0:00:07]} 52. f5 {[%clk 0:00:07.2]} 52...
Kf7 {[%clk 0:00:07.5]} 53. f6 {[%clk 0:00:08.1]} 53... Kf8 {[%clk 0:00:07.3]}
54. Kf5 {[%clk 0:00:09]} 54... Kf7 {[%clk 0:00:07]} 55. Ke5 {[%clk 0:00:09.9]}
55... Kf8 {[%clk 0:00:07.1]} 56. Ke6 {[%clk 0:00:10.8]} 56... Ke8 {[%clk
0:00:07.5]} 57. Ke5 {[%clk 0:00:11.1]} 57... Kf7 {[%clk 0:00:07.5]} 58. Kf5
{[%clk 0:00:12]} 58... Kf8 {[%clk 0:00:07.3]} 59. Kg6 {[%clk 0:00:12.9]} 59...
Kg8 {[%clk 0:00:07.2]} 60. Kxh6 {[%clk 0:00:13.8]} 60... Kf7 {[%clk 0:00:03.7]}
61. Kg5 {[%clk 0:00:14.7]} 61... Kg8 {[%clk 0:00:03.6]} 62. Kg6 {[%clk
0:00:15.6]} 62... Kh8 {[%clk 0:00:03.9]} 63. h6 {[%clk 0:00:15.9]} 63... Kg8
{[%clk 0:00:04.2]} 64. Kf5 {[%clk 0:00:16.8]} 64... Kf7 {[%clk 0:00:02]} 65. Ke5
{[%clk 0:00:17.2]} 65... Kg6 {[%clk 0:00:01.9]} 66. Ke6 {[%clk 0:00:17.6]} 66...
Kh7 {[%clk 0:00:01.8]} 67. f7 {[%clk 0:00:18.5]} 67... Kxh6 {[%clk 0:00:01.4]}
68. f8=Q+ {[%clk 0:00:18.9]} 68... Kg6 {[%clk 0:00:01.6]} 69. Qf7+ {[%clk
0:00:19.3]} 1-0

[Event "*** Titled Tuesday Blitz"]
[Site "Chess.com"]
[Date "2020.11.03"]
[Round "4"]
[White "Goryachkina"]
[Black "Ze-Pequeno"]
[Result "1/2-1/2"]
[WhiteElo "2593"]
[BlackElo "2240"]
[TimeControl "180+1"]
[EndTime "10:43:05 PST"]
[Termination "Game drawn - insufficient material"]

1. e4 {[%clk 0:02:59.5]} 1... c5 {[%clk 0:02:58.5]} 2. Nf3 {[%clk 0:02:58.3]}
2... d6 {[%clk 0:02:58.3]} 3. c3 {[%clk 0:02:57.2]} 3... Nf6 {[%clk 0:02:58]} 4.
Be2 {[%clk 0:02:57]} 4... Bg4 {[%clk 0:02:57]} 5. h3 {[%clk 0:02:54.4]} 5... Bh5
{[%clk 0:02:56.7]} 6. Qb3 {[%clk 0:02:51.4]} 6... Qc7 {[%clk 0:02:48.9]} 7. O-O
{[%clk 0:02:45.4]} 7... Nc6 {[%clk 0:02:47]} 8. d3 {[%clk 0:02:41.6]} 8... e6
{[%clk 0:02:45.5]} 9. Nbd2 {[%clk 0:02:38]} 9... Be7 {[%clk 0:02:44.7]} 10. Re1
{[%clk 0:02:31.6]} 10... O-O {[%clk 0:02:40.7]} 11. Nf1 {[%clk 0:02:31.6]} 11...
Rfe8 {[%clk 0:02:36.7]} 12. Ng3 {[%clk 0:02:31.3]} 12... Bg6 {[%clk 0:02:36.3]}
13. Bf4 {[%clk 0:02:30.2]} 13... Rad8 {[%clk 0:02:28.7]} 14. Rad1 {[%clk
0:02:29.2]} 14... a6 {[%clk 0:02:26.5]} 15. Nh4 {[%clk 0:02:23.5]} 15... Qc8
{[%clk 0:02:08.3]} 16. Nxg6 {[%clk 0:02:22.5]} 16... hxg6 {[%clk 0:02:08]} 17.
d4 {[%clk 0:02:21.3]} 17... d5 {[%clk 0:01:58.3]} 18. e5 {[%clk 0:02:17.4]}
18... Nd7 {[%clk 0:01:58.3]} 19. Be3 {[%clk 0:01:57]} 19... b5 {[%clk
0:01:55.2]} 20. Rd2 {[%clk 0:01:50.4]} 20... cxd4 {[%clk 0:01:53.5]} 21. Bxd4
{[%clk 0:01:45.7]} 21... Nxd4 {[%clk 0:01:29.1]} 22. cxd4 {[%clk 0:01:43.3]}
22... Nb6 {[%clk 0:01:23.6]} 23. Qd3 {[%clk 0:01:38.1]} 23... Bb4 {[%clk
0:01:15.2]} 24. Rc2 {[%clk 0:01:33.4]} 24... Qd7 {[%clk 0:01:14.5]} 25. Rec1
{[%clk 0:01:32]} 25... Rc8 {[%clk 0:01:13]} 26. h4 {[%clk 0:01:26.8]} 26... Rxc2
{[%clk 0:01:09.4]} 27. Rxc2 {[%clk 0:01:26.5]} 27... Rc8 {[%clk 0:01:10.3]} 28.
h5 {[%clk 0:01:25.5]} 28... Rxc2 {[%clk 0:01:09]} 29. Qxc2 {[%clk 0:01:25.6]}
29... gxh5 {[%clk 0:01:08]} 30. Nxh5 {[%clk 0:01:24.8]} 30... Qc8 {[%clk
0:01:03]} 31. Qxc8+ {[%clk 0:01:02.7]} 31... Nxc8 {[%clk 0:01:02.4]} 32. Kf1
{[%clk 0:01:01.2]} 32... Ne7 {[%clk 0:00:52.9]} 33. a4 {[%clk 0:00:41.7]} 33...
bxa4 {[%clk 0:00:43.1]} 34. Bxa6 {[%clk 0:00:40.9]} 34... Nc6 {[%clk 0:00:43.4]}
35. Bb5 {[%clk 0:00:38.6]} 35... Nxd4 {[%clk 0:00:40.1]} 36. Bxa4 {[%clk
0:00:38.9]} 36... Kf8 {[%clk 0:00:32.5]} 37. Nf4 {[%clk 0:00:38.3]} 37... Ke7
{[%clk 0:00:25.8]} 38. Nd3 {[%clk 0:00:38.2]} 38... Ba5 {[%clk 0:00:25.5]} 39.
b4 {[%clk 0:00:37.9]} 39... Bb6 {[%clk 0:00:23.6]} 40. Ke1 {[%clk 0:00:37.4]}
40... f6 {[%clk 0:00:23]} 41. f4 {[%clk 0:00:34.5]} 41... Nf5 {[%clk 0:00:20.2]}
42. Ke2 {[%clk 0:00:29.9]} 42... Ne3 {[%clk 0:00:17.7]} 43. Kf3 {[%clk
0:00:26.9]} 43... Nc4 {[%clk 0:00:17.4]} 44. exf6+ {[%clk 0:00:22.1]} 44... gxf6
{[%clk 0:00:18.3]} 45. Bc6 {[%clk 0:00:16.1]} 45... Kd6 {[%clk 0:00:17.8]} 46.
b5 {[%clk 0:00:16.1]} 46... e5 {[%clk 0:00:17.1]} 47. fxe5+ {[%clk 0:00:14.2]}
47... fxe5 {[%clk 0:00:18]} 48. Nb4 {[%clk 0:00:13.8]} 48... e4+ {[%clk
0:00:18.2]} 49. Kf4 {[%clk 0:00:11.9]} 49... Be3+ {[%clk 0:00:17.3]} 50. Kf5
{[%clk 0:00:11.2]} 50... Bc5 {[%clk 0:00:12.7]} 51. Nxd5 {[%clk 0:00:10.6]}
51... e3 {[%clk 0:00:12.6]} 52. Nxe3 {[%clk 0:00:08.9]} 52... Nxe3+ {[%clk
0:00:12.4]} 53. Kf4 {[%clk 0:00:09.3]} 53... Nc2 {[%clk 0:00:12.2]} 54. g4
{[%clk 0:00:09.4]} 54... Be3+ {[%clk 0:00:09.6]} 55. Kf3 {[%clk 0:00:08]} 55...
Bd4 {[%clk 0:00:09.5]} 56. g5 {[%clk 0:00:07.6]} 56... Nb4 {[%clk 0:00:08.7]}
57. Ke4 {[%clk 0:00:06.5]} 57... Nxc6 {[%clk 0:00:07.4]} 58. bxc6 {[%clk
0:00:06.4]} 58... Bh8 {[%clk 0:00:07.9]} 59. g6 {[%clk 0:00:06.5]} 59... Kxc6
{[%clk 0:00:08]} 60. g7 {[%clk 0:00:07]} 60... Bxg7 {[%clk 0:00:07.5]} 1/2-1/2

[Event "*** Titled Tuesday Blitz"]
[Site "Chess.com"]
[Date "2020.11.03"]
[Round "4"]
[White "Nemsko"]
[Black "MartinZumsande"]
[Result "1/2-1/2"]
[WhiteElo "2382"]
[BlackElo "2579"]
[TimeControl "180+1"]
[EndTime "10:43:06 PST"]
[Termination "Game drawn - timeout vs insufficient material"]

1. e4 {[%clk 0:03:00.9]} 1... e6 {[%clk 0:02:59.1]} 2. d4 {[%clk 0:02:59.9]}
2... d5 {[%clk 0:02:59.5]} 3. Nc3 {[%clk 0:03:00.1]} 3... Nf6 {[%clk 0:02:59.3]}
4. e5 {[%clk 0:02:58.8]} 4... Nfd7 {[%clk 0:02:59.4]} 5. f4 {[%clk 0:02:59.2]}
5... c5 {[%clk 0:02:59.9]} 6. Nf3 {[%clk 0:02:59.2]} 6... a6 {[%clk 0:03:00.5]}
7. Be3 {[%clk 0:02:59.1]} 7... Qb6 {[%clk 0:03:01]} 8. Rb1 {[%clk 0:02:56]} 8...
Nc6 {[%clk 0:02:59.7]} 9. Qd2 {[%clk 0:02:48.5]} 9... Qa7 {[%clk 0:02:57.3]} 10.
a4 {[%clk 0:02:30.5]} 10... cxd4 {[%clk 0:02:24.8]} 11. Nxd4 {[%clk 0:02:28.1]}
11... Nxd4 {[%clk 0:02:23.2]} 12. Bxd4 {[%clk 0:02:27.2]} 12... Bc5 {[%clk
0:02:24.1]} 13. Ne2 {[%clk 0:02:24.2]} 13... O-O {[%clk 0:02:19.3]} 14. c3
{[%clk 0:02:23.6]} 14... f6 {[%clk 0:02:13.7]} 15. exf6 {[%clk 0:02:21.6]} 15...
Bxd4 {[%clk 0:02:13.7]} 16. Qxd4 {[%clk 0:02:21.2]} 16... Nxf6 {[%clk
0:02:09.4]} 17. Qxa7 {[%clk 0:02:18.8]} 17... Rxa7 {[%clk 0:02:10.3]} 18. g3
{[%clk 0:02:15.9]} 18... Bd7 {[%clk 0:02:07.5]} 19. Ra1 {[%clk 0:02:04.8]} 19...
a5 {[%clk 0:02:05.6]} 20. Nd4 {[%clk 0:02:03]} 20... b6 {[%clk 0:02:05.7]} 21.
Bd3 {[%clk 0:01:53.5]} 21... Re8 {[%clk 0:02:00.1]} 22. O-O {[%clk 0:01:50.3]}
22... Kf7 {[%clk 0:01:58]} 23. Rfe1 {[%clk 0:01:42.6]} 23... Rc7 {[%clk
0:01:57.2]} 24. Nf3 {[%clk 0:01:36.3]} 24... Bc8 {[%clk 0:01:52.5]} 25. Re2
{[%clk 0:01:32.1]} 25... Ke7 {[%clk 0:01:36.7]} 26. Rae1 {[%clk 0:01:27.6]}
26... Kd6 {[%clk 0:01:36.8]} 27. Nd4 {[%clk 0:01:22.8]} 27... Bd7 {[%clk
0:01:36.2]} 28. h3 {[%clk 0:01:01.2]} 28... h5 {[%clk 0:01:28.1]} 29. Bg6 {[%clk
0:00:55.1]} 29... Rg8 {[%clk 0:01:13.2]} 30. Bf7 {[%clk 0:00:39.2]} 30... Rf8
{[%clk 0:01:10]} 31. Bxe6 {[%clk 0:00:32.2]} 31... Ne4 {[%clk 0:01:09.8]} 32.
Bxd5 {[%clk 0:00:25.3]} 32... Nxg3 {[%clk 0:01:09.5]} 33. Re5 {[%clk 0:00:20.7]}
33... Rxf4 {[%clk 0:01:05.4]} 34. Bg2 {[%clk 0:00:20.6]} 34... Rc5 {[%clk
0:00:57.8]} 35. Re7 {[%clk 0:00:16]} 35... g5 {[%clk 0:00:50.6]} 36. Rg7 {[%clk
0:00:15.2]} 36... g4 {[%clk 0:00:41.8]} 37. Ree7 {[%clk 0:00:13.1]} 37... Rc7
{[%clk 0:00:28.3]} 38. Nb5+ {[%clk 0:00:09.8]} 38... Bxb5 {[%clk 0:00:27]} 39.
Rxc7 {[%clk 0:00:10.7]} 39... Ne2+ {[%clk 0:00:26]} 40. Kh1 {[%clk 0:00:08.3]}
40... Bxa4 {[%clk 0:00:23.1]} 41. Rcf7 {[%clk 0:00:06.9]} 41... Rxf7 {[%clk
0:00:19.2]} 42. Rxf7 {[%clk 0:00:07.8]} 42... gxh3 {[%clk 0:00:18.3]} 43. Bxh3
{[%clk 0:00:07.5]} 43... Bb3 {[%clk 0:00:18.5]} 44. Rf6+ {[%clk 0:00:07.3]}
44... Kc5 {[%clk 0:00:18.9]} 45. Rf5+ {[%clk 0:00:07.4]} 45... Kc4 {[%clk
0:00:18.8]} 46. Rg5 {[%clk 0:00:06.7]} 46... Kd3 {[%clk 0:00:19]} 47. Bf1 {[%clk
0:00:07.2]} 47... Kd2 {[%clk 0:00:17.9]} 48. Rg2 {[%clk 0:00:06.8]} 48... Bd1
{[%clk 0:00:17.2]} 49. Kh2 {[%clk 0:00:06.2]} 49... Ke1 {[%clk 0:00:17.2]} 50.
Bxe2 {[%clk 0:00:06.2]} 50... Bxe2 {[%clk 0:00:18.1]} 51. Kh3 {[%clk 0:00:05.6]}
51... Kd1 {[%clk 0:00:18.3]} 52. Kh4 {[%clk 0:00:05.2]} 52... Kc1 {[%clk
0:00:18.6]} 53. Rxe2 {[%clk 0:00:05.6]} 53... Kb1 {[%clk 0:00:18]} 54. Kxh5
{[%clk 0:00:06]} 54... Ka2 {[%clk 0:00:18.9]} 55. Kg4 {[%clk 0:00:05.9]} 55...
a4 {[%clk 0:00:19.1]} 56. Kf3 {[%clk 0:00:04.1]} 56... Kb3 {[%clk 0:00:20]} 57.
Ke3 {[%clk 0:00:04.1]} 57... a3 {[%clk 0:00:20.9]} 58. bxa3 {[%clk 0:00:04.4]}
58... Kxc3 {[%clk 0:00:21.2]} 59. Ke4 {[%clk 0:00:04]} 59... Kb3 {[%clk
0:00:22.1]} 60. Re3+ {[%clk 0:00:04.4]} 60... Ka4 {[%clk 0:00:22.2]} 61. Kd5
{[%clk 0:00:05]} 61... b5 {[%clk 0:00:23.1]} 62. Kc5 {[%clk 0:00:04.5]} 62... b4
{[%clk 0:00:24]} 63. Re4 {[%clk 0:00:02.8]} 63... Kxa3 {[%clk 0:00:23.6]} 64.
Rxb4 {[%clk 0:00:03.4]} 64... Ka2 {[%clk 0:00:24.1]} 65. Kc4 {[%clk 0:00:03.6]}
65... Ka3 {[%clk 0:00:25]} 66. Kc3 {[%clk 0:00:03.9]} 66... Ka2 {[%clk
0:00:25.9]} 67. Rb3 {[%clk 0:00:03.8]} 67... Ka1 {[%clk 0:00:26.8]} 68. Kc2
{[%clk 0:00:02.6]} 68... Ka2 {[%clk 0:00:27.7]} 69. Rb8 {[%clk 0:00:03.1]} 69...
Ka3 {[%clk 0:00:27.7]} 70. Kc3 {[%clk 0:00:03.7]} 70... Ka4 {[%clk 0:00:28.6]}
71. Kc4 {[%clk 0:00:03.4]} 71... Ka5 {[%clk 0:00:29.5]} 72. Kc5 {[%clk
0:00:02.3]} 72... Ka6 {[%clk 0:00:30.4]} 73. Rb4 {[%clk 0:00:01.4]} 73... Ka7
{[%clk 0:00:31.3]} 1/2-1/2

[Event "*** Titled Tuesday Blitz"]
[Site "Chess.com"]
[Date "2020.11.03"]
[Round "4"]
[White "kreonx"]
[Black "BegmuratovKh2010"]
[Result "0-1"]
[WhiteElo "2302"]
[BlackElo "2462"]
[TimeControl "180+1"]
[EndTime "10:43:11 PST"]
[Termination "BegmuratovKh2010 won by resignation"]

1. e4 {[%clk 0:03:00.9]} 1... e5 {[%clk 0:02:58.9]} 2. Nf3 {[%clk 0:02:59.9]}
2... Nc6 {[%clk 0:02:58.8]} 3. d4 {[%clk 0:03:00.1]} 3... exd4 {[%clk
0:02:57.3]} 4. Nxd4 {[%clk 0:03:01]} 4... d6 {[%clk 0:02:52]} 5. Nc3 {[%clk
0:02:46]} 5... Nf6 {[%clk 0:02:49.6]} 6. Nxc6 {[%clk 0:02:39.8]} 6... bxc6
{[%clk 0:02:50.5]} 7. Bd3 {[%clk 0:02:34.4]} 7... Be7 {[%clk 0:02:49.6]} 8. O-O
{[%clk 0:02:34.1]} 8... O-O {[%clk 0:02:48.8]} 9. h3 {[%clk 0:02:34.3]} 9... Re8
{[%clk 0:02:43.4]} 10. b3 {[%clk 0:02:32.4]} 10... Bf8 {[%clk 0:02:42.4]} 11.
Bb2 {[%clk 0:02:30.8]} 11... g6 {[%clk 0:02:42.2]} 12. Qf3 {[%clk 0:02:20.8]}
12... Bg7 {[%clk 0:02:41.5]} 13. Rfe1 {[%clk 0:01:56.2]} 13... Nd7 {[%clk
0:02:35.2]} 14. Na4 {[%clk 0:01:27.3]} 14... Ne5 {[%clk 0:02:31.9]} 15. Qg3
{[%clk 0:01:19.8]} 15... Qe7 {[%clk 0:02:05.6]} 16. f4 {[%clk 0:01:11.4]} 16...
Nxd3 {[%clk 0:02:01.6]} 17. cxd3 {[%clk 0:01:05.4]} 17... Bxb2 {[%clk
0:01:48.5]} 18. Nxb2 {[%clk 0:01:04.7]} 18... f6 {[%clk 0:01:44.1]} 19. Nc4
{[%clk 0:00:56.2]} 19... a5 {[%clk 0:01:34.2]} 20. Kh2 {[%clk 0:00:51.7]} 20...
a4 {[%clk 0:01:28.9]} 21. e5 {[%clk 0:00:51.2]} 21... fxe5 {[%clk 0:01:28]} 22.
fxe5 {[%clk 0:00:48.3]} 22... d5 {[%clk 0:01:27.5]} 23. Nd2 {[%clk 0:00:47.8]}
23... Bf5 {[%clk 0:01:25.2]} 24. d4 {[%clk 0:00:45.1]} 24... axb3 {[%clk
0:01:18.6]} 25. axb3 {[%clk 0:00:30.4]} 25... Qb4 {[%clk 0:00:50.4]} 26. Nf3
{[%clk 0:00:24.4]} 26... Rxa1 {[%clk 0:00:39.1]} 27. Rxa1 {[%clk 0:00:25.3]}
27... Qxb3 {[%clk 0:00:39.5]} 28. Qg5 {[%clk 0:00:23.1]} 28... Be4 {[%clk
0:00:32.2]} 29. Qf6 {[%clk 0:00:17.2]} 29... Bxf3 {[%clk 0:00:25.8]} 30. Qxf3
{[%clk 0:00:15.5]} 30... Qxf3 {[%clk 0:00:23.8]} 31. gxf3 {[%clk 0:00:16.4]}
31... c5 {[%clk 0:00:21.5]} 32. dxc5 {[%clk 0:00:06.7]} 32... Rxe5 {[%clk
0:00:20.8]} 33. Ra8+ {[%clk 0:00:04.1]} 33... Kg7 {[%clk 0:00:19.8]} 34. Rc8
{[%clk 0:00:04.7]} 34... Re7 {[%clk 0:00:19]} 35. Kg3 {[%clk 0:00:05.6]} 35...
Kf6 {[%clk 0:00:17.7]} 36. Kf4 {[%clk 0:00:05.3]} 36... h5 {[%clk 0:00:17]} 37.
h4 {[%clk 0:00:04.2]} 37... Rd7 {[%clk 0:00:15.5]} 38. c6 {[%clk 0:00:04.1]}
38... Re7 {[%clk 0:00:14.8]} 39. Rd8 {[%clk 0:00:04.6]} 39... Ke6 {[%clk
0:00:13.8]} 40. Rg8 {[%clk 0:00:03.3]} 40... Rf7+ {[%clk 0:00:12.6]} 41. Ke3
{[%clk 0:00:01.8]} 41... Rf6 {[%clk 0:00:11]} 42. Rg7 {[%clk 0:00:02]} 42... Kd6
{[%clk 0:00:10.7]} 43. f4 {[%clk 0:00:02.9]} 43... Kxc6 {[%clk 0:00:10.4]} 44.
Rg8 {[%clk 0:00:03.2]} 44... Kd6 {[%clk 0:00:10.5]} 45. Rd8+ {[%clk 0:00:03.4]}
45... Ke6 {[%clk 0:00:08.9]} 46. Re8+ {[%clk 0:00:03.8]} 46... Kd7 {[%clk
0:00:08.4]} 47. Rg8 {[%clk 0:00:03.5]} 47... Re6+ {[%clk 0:00:07.9]} 48. Kd3
{[%clk 0:00:03]} 48... c5 {[%clk 0:00:06.9]} 49. Rg7+ {[%clk 0:00:03.9]} 49...
Kd6 {[%clk 0:00:06.6]} 50. Rg8 {[%clk 0:00:04.8]} 50... c4+ {[%clk 0:00:06.5]}
51. Kd4 {[%clk 0:00:05.2]} 51... Re4+ {[%clk 0:00:06.3]} 52. Kc3 {[%clk
0:00:06.1]} 52... Rxf4 {[%clk 0:00:07.2]} 53. Rxg6+ {[%clk 0:00:06.5]} 53... Kc5
{[%clk 0:00:07.9]} 54. Rg5 {[%clk 0:00:07.1]} 54... Rxh4 {[%clk 0:00:07.2]} 55.
Kd2 {[%clk 0:00:07.4]} 55... Kd4 {[%clk 0:00:06.2]} 56. Rg8 {[%clk 0:00:07.4]}
56... c3+ {[%clk 0:00:06.2]} 57. Ke1 {[%clk 0:00:07.9]} 57... Rh2 {[%clk
0:00:07.1]} 58. Rg2 {[%clk 0:00:07.4]} 58... Rxg2 {[%clk 0:00:06.2]} 0-1